fUST/lending_fUST_20250925
["ID","MTS","AMOUNT","RATE_DAILY","PERIOD"]
[387689176,1758810647944,-480.0,0.00021517,2]
[387689177,1758810647954,-480.0,0.00021518,2]
[387689178,1758810647967,-160.27,0.00021518,2]
[387689179,1758810647977,-1301.92,0.00021542,2]
[387689180,1758810647987,-480.0,0.00021542,2]
[387689181,1758810647997,-460.0,0.00021658,2]
[387689182,1758810648007,-150.0,0.0002169,2]
[387689183,1758810648017,-2500.0,0.00021764,2]
[387689184,1758810648026,-237.76686449,0.00021789,2]
[387689185,1758810648036,-480.0,0.0002179,2]
[387689186,1758810648045,-509.14,0.0002179,2]
[387689187,1758810648055,-480.0,0.0002179,2]
[387689188,1758810648065,-522.68,0.00021791,2]
[387689189,1758810648075,-480.0,0.00021791,2]
[387689190,1758810648085,-480.0,0.00021791,2]
[387689191,1758810648095,-582.48,0.00021791,2]
[387689192,1758810648105,-480.0,0.00021791,2]
[387689193,1758810648115,-440.84,0.00021792,2]
[387689194,1758810648125,-1301.92,0.00021816,2]
[387689195,1758810648135,-480.0,0.00021816,2]
[387689196,1758810648145,-480.0,0.00021917,2]
[387689197,1758810648154,-480.0,0.00021917,2]
[387689198,1758810648164,-480.0,0.00021917,2]
[387689199,1758810648174,-480.0,0.00021917,2]
[387689200,1758810648184,-480.0,0.00021917,2]
[387689201,1758810648193,-480.0,0.00021917,2]
[387689202,1758810648204,-480.0,0.00021917,2]
[387689203,1758810648214,-480.0,0.00021917,2]
[387689204,1758810648223,-480.0,0.00021917,2]
[387689205,1758810648233,-480.0,0.00021917,2]
[387689206,1758810648243,-500.0,0.00021917,2]
[387689207,1758810648252,-500.0,0.00021917,2]
[387689208,1758810648262,-500.0,0.00021917,2]
[387689209,1758810648272,-407.85891231,0.00021917,2]
[387689210,1758810648282,-1217.18338762,0.00022044,2]
[387689211,1758810648292,-480.0,0.00022064,2]
[387689212,1758810648301,-509.14,0.00022064,2]
[387689213,1758810648311,-480.0,0.00022064,2]
[387689214,1758810648321,-248.74781039,0.00022065,2]
[387689215,1758810648331,-522.68,0.00022065,2]
[387689216,1758810648340,-480.0,0.00022065,2]
[387689217,1758810648350,-480.0,0.00022065,2]
[387689218,1758810648360,-582.48,0.00022065,2]
[387689219,1758810648369,-415.73,0.00022065,2]
[387689220,1758810648379,-1301.92,0.0002209,2]
[387689221,1758810648389,-480.0,0.0002209,2]
[387689222,1758810648398,-1796.36,0.000221,2]
[387689223,1758810648409,-560.0,0.00022206,2]
[387689224,1758810648419,-480.0,0.00022338,2]
[387689225,1758810648429,-509.14,0.00022338,2]
[387689226,1758810648439,-480.0,0.00022338,2]
[387689227,1758810648449,-522.68,0.00022339,2]
[387689228,1758810648460,-480.0,0.00022339,2]
[387689229,1758810648470,-480.0,0.00022339,2]
[387689230,1758810648480,-582.48,0.00022339,2]
[387689231,1758810648490,-476.83231082,0.0002234,2]
[387689232,1758810648500,-1301.92,0.00022364,2]
[387689233,1758810648509,-480.0,0.00022364,2]
[387689234,1758810648519,-160.0,0.00022409,2]
[387689235,1758810648530,-160.0,0.00022409,2]
[387689236,1758810648539,-160.0,0.00022409,2]
[387689237,1758810648549,-233.66602051,0.00022409,2]
[387689238,1758810648559,-160.0,0.00022409,2]
[387689239,1758810648569,-480.0,0.00022612,2]
[387689240,1758810648578,-509.14,0.00022612,2]
[387689241,1758810648588,-480.0,0.00022612,2]
[387689242,1758810648598,-522.68,0.00022613,2]
[387689243,1758810648607,-480.0,0.00022613,2]
[387689244,1758810648617,-480.0,0.00022613,2]
[387689245,1758810648627,-582.48,0.00022613,2]
[387689246,1758810648637,-150.0,0.00022633,2]
[387689247,1758810648647,-1301.92,0.00022638,2]
[387689248,1758810648657,-480.0,0.00022638,2]
[387689249,1758810648667,-660.0,0.00022754,2]
[387689250,1758810648676,-168.0,0.00022811,2]
[387689251,1758810648687,-480.0,0.00022886,2]
[387689252,1758810648700,-509.14,0.00022886,2]
[387689253,1758810648711,-480.0,0.00022886,2]
[387689254,1758810648720,-522.68,0.00022887,2]
[387689255,1758810648730,-480.0,0.00022887,2]
[387689256,1758810648741,-200.0,0.00022887,2]
[387689257,1758810648751,-582.48,0.00022887,2]
[387689258,1758810648761,-168.0,0.00022899,2]
[387689259,1758810648771,-1301.92,0.00022912,2]
[387689260,1758810648781,-480.0,0.00022912,2]
[387689261,1758810648791,-574.0,0.0002294,2]
[387689262,1758810648801,-168.0,0.00022981,2]
[387689263,1758810648811,-176.55634929,0.00022994,2]
[387689264,1758810648820,-3888.28432633,0.00022994,2]
[387689265,1758810648830,-160.0,0.00023,2]
[387689266,1758810648840,-721726.54308911,0.00023,2]
[387689267,1758810648849,-168.0,0.00023094,2]
[387689268,1758810648859,-1217.18338762,0.00023116,2]
[387689269,1758810648870,-501.28345476,0.0002316,2]
[387689270,1758810648879,-509.14,0.0002316,2]
[387689271,1758810648890,-574.54941345,0.0002316,2]
[387689272,1758810648900,-522.68,0.00023161,2]
[387689273,1758810648909,-480.0,0.00023161,2]
[387689274,1758810648919,-582.48,0.00023161,2]
[387689275,1758810648929,-720.0,0.00023162,2]
[387689276,1758810648939,-1301.92,0.00023186,2]
[387689277,1758810648948,-480.0,0.00023186,2]
[387689278,1758810648959,-509.14,0.00023434,2]
[387689279,1758810648969,-522.68,0.00023435,2]
[387689280,1758810648979,-480.0,0.00023435,2]
[387689281,1758810648989,-582.48,0.00023435,2]
[387689282,1758810648998,-1301.92,0.0002346,2]
[387689283,1758810649008,-480.0,0.0002346,2]
[387689284,1758810649018,-150.0,0.00023576,2]
[387689285,1758810649028,-168.0,0.00023594,2]
[387689286,1758810649038,-168.0,0.00023646,2]
[387689287,1758810649047,-509.14,0.00023708,2]
[387689288,1758810649057,-522.68,0.00023709,2]
[387689289,1758810649067,-480.0,0.00023709,2]
[387689290,1758810649076,-582.48,0.00023709,2]
[387689291,1758810649086,-1301.92,0.00023734,2]
[387689292,1758810649095,-480.0,0.00023734,2]
[387689293,1758810649106,-168.0,0.00023815,2]
[387689294,1758810649115,-250.0,0.00023845,2]
[387689295,1758810649190,-350.0,0.00023845,2]
[387689296,1758810649201,-151.0,0.00023845,2]
[387689297,1758810649210,-500.0,0.00023845,2]
[387689298,1758810649220,-194.72792766,0.00023845,2]
[387689299,1758810649229,-509.14,0.00023982,2]
[387689300,1758810649239,-522.68,0.00023983,2]
[387689301,1758810649249,-480.0,0.00023983,2]
[387689302,1758810649259,-582.48,0.00023983,2]
[387689303,1758810649269,-1301.92,0.00024008,2]
[387689304,1758810649278,-480.0,0.00024008,2]
[387689305,1758810649288,-975.721,0.0002413,6]
[387689306,1758810649298,-168.0,0.00024174,2]
[387689307,1758810649308,-1217.18338762,0.00024187,2]
[387689308,1758810649318,-168.0,0.00024239,2]
[387689309,1758810649328,-509.14,0.00024256,2]
[387689310,1758810649338,-522.68,0.00024257,2]
[387689311,1758810649348,-480.0,0.00024257,2]
[387689312,1758810649358,-582.48,0.00024257,2]
[387689313,1758810649368,-168.0,0.00024262,2]
[387689314,1758810649378,-168.0,0.00024272,2]
[387689315,1758810649387,-1301.92,0.00024282,2]
[387689316,1758810649398,-480.0,0.00024282,2]
[387689317,1758810649407,-168.0,0.00024387,2]
[387689318,1758810649418,-168.0,0.00024465,2]
[387689319,1758810649427,-150.0,0.00024502,2]
[387689320,1758810649437,-509.14,0.0002453,2]
[387689321,1758810649447,-522.68,0.00024531,2]
[387689322,1758810649456,-480.0,0.00024531,2]
[387689323,1758810649466,-582.48,0.00024531,2]
[387689324,1758810649476,-1301.92,0.00024556,2]
[387689325,1758810649485,-480.0,0.00024556,2]
[387689326,1758810649495,-168.0,0.00024558,2]
[387689327,1758810649504,-380.0,0.00024658,2]
[387689328,1758810649513,-168.0,0.00024675,2]
[387689329,1758810649523,-168.0,0.00024776,2]
[387689330,1758810649532,-509.14,0.00024804,2]
[387689331,1758810649542,-522.68,0.00024805,2]
[387689332,1758810649551,-366.38,0.00024805,2]
[387689333,1758810649561,-582.48,0.00024805,2]
[387689334,1758810649570,-1301.92,0.0002483,2]
[387689335,1758810649580,-397.06798182,0.0002483,2]
[387689336,1758810649590,-1796.36,0.000249,2]
[387689337,1758810649599,-405914.473717,0.000249,2]
[387689338,1758810649609,-168.0,0.0002498,2]
[387689339,1758810649618,-4036.11849085,0.0002501,5]
[387689340,1758810649627,-168.0,0.00025018,2]
[387689341,1758810649637,-168.0,0.00025039,2]
[387689342,1758810649646,-168.0,0.0002505,2]
[387689343,1758810649656,-509.14,0.00025078,2]
[387689344,1758810649665,-522.68,0.00025079,2]
[387689345,1758810649675,-582.48,0.00025079,2]
[387689346,1758810649684,-1301.92,0.00025104,2]
[387689347,1758810649694,-168.0,0.0002513,2]
[387689348,1758810649705,-1217.18338762,0.00025259,3]
[387689349,1758810649714,-509.14,0.00025352,2]
[387689350,1758810649723,-522.68,0.00025353,2]
[387689351,1758810649733,-582.48,0.00025353,2]
[387689352,1758810649743,-1301.92,0.00025378,2]
[387689353,1758810649752,-250.0,0.00025403,2]
[387689354,1758810649762,-160.19,0.00025487,2]
[387689355,1758810649771,-509.16495634,0.00025626,2]
[387689356,1758810649781,-522.78,0.00025627,2]
[387689357,1758810649791,-582.70421942,0.00025627,2]
[387689358,1758810649800,-1302.07758226,0.00025652,2]
[387689359,1758810649809,-4979.45748792,0.00026,10]
[387689360,1758810649818,-1328.51213,0.00026,30]
[387689361,1758810649828,-1217.18338762,0.00026331,5]
[387689362,1758810649838,-183.07,0.00026431,2]
[387689363,1758810649847,-500.0,0.00026511,2]
[387689364,1758810649856,-155.1,0.00026687,7]
[387689365,1758810649866,-155.1,0.00026787,7]
[387689366,1758810649876,-151.0,0.00026818,2]
[387689367,1758810649885,-229.08924033,0.00026818,2]
[387689368,1758810649895,-500.0,0.00026818,2]
[387689369,1758810649909,-151.0,0.00026818,2]
[387689370,1758810649924,-500.0,0.00026818,2]
[387689371,1758810649939,-158.36051303,0.00026818,2]
[387689372,1758810649949,-151.0,0.00026818,2]
[387689373,1758810649958,-151.0,0.00026818,2]
[387689374,1758810649968,-155.1,0.00026887,7]
[387689375,1758810649978,-155.1,0.00026987,7]
[387689376,1758810649988,-155.1,0.00027087,7]
[387689377,1758810649997,-151.0,0.00027092,2]
[387689378,1758810650007,-500.0,0.00027092,2]
[387689379,1758810650017,-151.0,0.00027092,2]
[387689380,1758810650026,-500.0,0.00027092,2]
[387689381,1758810650036,-300.86364638,0.00027092,2]
[387689382,1758810650045,-269.0,0.00027123,23]
[387689383,1758810650056,-155.1,0.00027187,7]
[387689384,1758810650065,-155.1,0.00027287,7]
[387689385,1758810650075,-500.0,0.00027366,2]
[387689386,1758810650085,-151.0,0.00027366,2]
[387689387,1758810650095,-500.0,0.00027366,2]
[387689388,1758810650106,-205.96,0.00027374,2]
[387689389,1758810650115,-155.1,0.00027387,7]
[387689390,1758810650124,-480.0,0.00027397,2]
[387689391,1758810650134,-1217.18338762,0.00027403,7]
[387689392,1758810650144,-155.1,0.00027487,15]
[387689393,1758810650153,-45363.65267608,0.000275,2]
[387689394,1758810650163,-179.65864857,0.00027574,2]
[387689395,1758810650172,-155.1,0.00027587,15]
[387689396,1758810650181,-500.0,0.0002764,2]
[387689397,1758810650191,-151.0,0.0002764,2]
[387689398,1758810650201,-500.0,0.0002764,2]
[387689399,1758810650210,-155.1,0.00027687,15]
[387689400,1758810650219,-155.1,0.00027787,15]
[387689401,1758810650229,-155.1,0.00027887,15]
[387689402,1758810650239,-472.8876733,0.000279,2]
[387689403,1758810650248,-472.88767323,0.000279,2]
[387689404,1758810650258,-472.88767323,0.000279,2]
[387689405,1758810650268,-500.0,0.00027914,2]
[387689406,1758810650278,-252.04236636,0.00027914,2]
[387689407,1758810650288,-548.0,0.00027914,2]
[387689408,1758810650298,-155.1,0.00027987,15]
[387689409,1758810650308,-1200.65443132,0.00028,2]
[387689410,1758810650317,-202.09049916,0.00028,2]
[387689411,1758810650327,-1131.18,0.00028,2]
[387689412,1758810650336,-155.1,0.00028087,15]
[387689413,1758810650345,-1131.18,0.0002814,2]
[387689414,1758810650355,-155.14060003,0.00028187,15]
[387689415,1758810650364,-500.0,0.00028188,2]
[387689416,1758810650373,-225.2,0.00028219,14]
[387689417,1758810650383,-1131.18,0.0002828,2]
[387689418,1758810650392,-228.84,0.00028318,2]
[387689419,1758810650401,-500.0,0.00028462,2]
[387689420,1758810650410,-1217.18338762,0.00028475,9]
[387689421,1758810650419,-1596.24929679,0.000285,7]
[387689422,1758810650429,-157.55736161,0.00028541,5]
[387689423,1758810650438,-472.88767323,0.00028629,2]
[387689424,1758810650447,-500.0,0.00028736,2]
[387689425,1758810650515,-1796.36,0.000288,2]
[387689426,1758810650525,-169.03382967,0.000288,7]
[387689427,1758810650534,-225.2,0.00028904,15]
[387689428,1758810650543,-70764.72865372,0.00028989,2]
[387689429,1758810650552,-676.0,0.00029,60]
[387689430,1758810650561,-878.9738737,0.00029,2]
[387689431,1758810650571,-209.0,0.00029,2]
[387689432,1758810650580,-8462.7735912,0.00029052,20]
[387689433,1758810650589,-5000.0,0.00029052,22]
[387689434,1758810650599,-5000.0,0.00029052,19]
[387689435,1758810650608,-5000.0,0.00029052,20]
[387689436,1758810650618,-5000.0,0.00029052,24]
[387689437,1758810650628,-1508.49882137,0.0002911,2]
[387689438,1758810650637,-1929.78102408,0.00029144,2]
[387689439,1758810650646,-157.55736161,0.00029427,5]
[387689440,1758810650656,-153.75635,0.00029452,7]
[387689441,1758810650666,-151.0,0.00029452,7]
[387689442,1758810650676,-151.0,0.00029452,7]
[387689443,1758810650685,-151.0,0.00029452,7]
[387689444,1758810650699,-151.0,0.00029452,7]
[387689445,1758810650709,-151.1,0.00029452,7]
[387689446,1758810650718,-151.0,0.00029452,7]
[387689447,1758810650728,-151.0,0.00029452,7]
[387689448,1758810650739,-151.0,0.00029452,7]
[387689449,1758810650748,-151.0,0.00029452,7]
[387689450,1758810650758,-151.0,0.00029453,7]
[387689451,1758810650769,-151.0,0.00029453,7]
[387689452,1758810650779,-151.0,0.00029453,7]
[387689453,1758810650789,-151.0,0.00029453,7]
[387689454,1758810650799,-151.0,0.00029453,7]
[387689455,1758810650808,-151.0,0.00029453,7]
[387689456,1758810650818,-361.168126,0.00029453,7]
[387689457,1758810650828,-361.168126,0.00029453,7]
[387689458,1758810650837,-361.168126,0.00029453,7]
[387689459,1758810650847,-361.168126,0.00029453,7]
[387689460,1758810650856,-151.0,0.00029453,7]
[387689461,1758810650866,-151.0,0.00029453,7]
[387689462,1758810650876,-151.0,0.00029453,7]
[387689463,1758810650885,-151.0,0.00029453,7]
[387689464,1758810650896,-151.0,0.00029453,7]
[387689465,1758810650906,-151.0,0.00029453,7]
[387689466,1758810650917,-2000.0,0.00029453,30]
[387689467,1758810650927,-1858.099999,0.00029453,30]
[387689468,1758810650938,-1075681.70572175,0.00029453,20]
[387689469,1758810650947,-30450.91438568,0.00029453,2]
[387689470,1758810650957,-499.02675176,0.00029453,2]
[387689471,1758810650967,-10683.86010432,0.00029453,2]
[387689472,1758810650976,-2920.0,0.00029453,2]
[387689473,1758810650986,-10217.15900398,0.00029453,2]
[387689474,1758810650995,-163.28594053,0.00029453,2]
[387689475,1758810651004,-385.02381461,0.00029453,2]
[387689476,1758810651014,-201.43637402,0.00029453,2]
[387689477,1758810651024,-272.93304924,0.00029453,2]
[387689478,1758810651033,-95000.0,0.00029453,2]
[387689479,1758810651043,-1217.18338762,0.00029547,12]
[387689480,1758810651052,-225.2,0.00029589,16]
[387689481,1758810651062,-978.0,0.00029647,2]
[387689482,1758810651072,-2160.0,0.00029647,2]
[387689483,1758810651083,-635.0,0.00029647,2]
[387689484,1758810651092,-410.0,0.00029647,2]
[387689485,1758810651101,-4586.0,0.00029893,2]
[387689486,1758810651111,-225.2,0.00030273,17]
[387689487,1758810651121,-472.88767323,0.00030508,2]
[387689488,1758810651130,-1217.18338762,0.00030619,14]
[387689489,1758810651140,-225.2,0.00030958,18]
[387689490,1758810651150,-225.2,0.00031643,19]
[387689491,1758810651161,-1217.18338762,0.0003169,16]
[387689492,1758810651170,-159.745298,0.00031699,30]
[387689493,1758810651180,-159.745298,0.00031863,30]
[387689494,1758810651189,-1125.96698239,0.00032,120]
[387689495,1758810651199,-6253.47107202,0.00032,120]
[387689496,1758810651210,-162.75628058,0.00032,120]
[387689497,1758810651220,-216.09257822,0.00032,120]
[387689498,1758810651230,-183.22441895,0.00032,120]
[387689499,1758810651239,-716.82456778,0.00032,120]
[387689500,1758810651249,-183.04,0.00032,120]
[387689501,1758810651259,-690.72402878,0.00032,120]
[387689502,1758810651268,-159.745298,0.00032,30]
[387689503,1758810651279,-159.745298,0.00032164,30]
[387689504,1758810651288,-1125.96698239,0.000323,120]
[387689505,1758810651297,-6253.47107202,0.000323,120]
[387689506,1758810651307,-162.75628058,0.000323,120]
[387689507,1758810651317,-183.22441895,0.000323,120]
[387689508,1758810651327,-716.82456778,0.000323,120]
[387689509,1758810651336,-183.04,0.000323,120]
[387689510,1758810651346,-690.72402878,0.000323,120]
[387689511,1758810651355,-160.0,0.00032321,3]
[387689512,1758810651365,-225.2,0.00032328,20]
[387689513,1758810651374,-159.745298,0.00032329,30]
[387689514,1758810651384,-159.745298,0.00032466,30]
[387689515,1758810651394,-1125.96698239,0.000326,120]
[387689516,1758810651403,-6253.47107202,0.000326,120]
[387689517,1758810651413,-162.75628058,0.000326,120]
[387689518,1758810651423,-183.22441895,0.000326,120]
[387689519,1758810651432,-716.82456778,0.000326,120]
[387689520,1758810651442,-183.04,0.000326,120]
[387689521,1758810651451,-690.72402878,0.000326,120]
[387689522,1758810651462,-159.745298,0.0003263,30]
[387689523,1758810651472,-978.0,0.00032647,2]
[387689524,1758810651482,-2160.0,0.00032647,2]
[387689525,1758810651491,-635.0,0.00032647,2]
[387689526,1758810651501,-410.0,0.00032647,2]
[387689527,1758810651510,-1217.18338762,0.00032762,19]
[387689528,1758810651520,-159.745298,0.00032767,30]
[387689529,1758810651529,-480.0,0.00032876,120]
[387689530,1758810651539,-704.46,0.00032876,120]
[387689531,1758810651548,-1500.0,0.00032877,2]
[387689532,1758810651559,-159.745298,0.00032932,30]
[387689533,1758810651569,-1125.96698239,0.00033,120]
[387689534,1758810651578,-6253.47107202,0.00033,120]
[387689535,1758810651588,-162.75628058,0.00033,120]
[387689536,1758810651598,-716.82456778,0.00033,120]
[387689537,1758810651607,-183.04,0.00033,120]
[387689538,1758810651617,-690.72402878,0.00033,120]
[387689539,1758810651627,-1796.36,0.00033,14]
[387689540,1758810651636,-233.66602051,0.00033,120]
[387689541,1758810651645,-417.15472785,0.00033,120]
[387689542,1758810651654,-225.2,0.00033013,21]
[387689543,1758810651663,-159.745298,0.00033068,30]
[387689544,1758810651672,-500.0,0.00033117,7]
[387689545,1758810651740,-185.08693842,0.000332,117]
[387689546,1758810651751,-159.745298,0.00033233,30]
[387689547,1758810651760,-1125.96698239,0.000333,120]
[387689548,1758810651771,-6253.47107202,0.000333,120]
[387689549,1758810651781,-162.75628058,0.000333,120]
[387689550,1758810651791,-716.82456778,0.000333,120]
[387689551,1758810651802,-183.04,0.000333,120]
[387689552,1758810651811,-690.72402878,0.000333,120]
[387689553,1758810651821,-159.745298,0.00033397,30]
[387689554,1758810651831,-6253.47107202,0.000336,120]
[387689555,1758810651840,-225.2,0.00033698,22]
[387689556,1758810651850,-704.46,0.00033698,120]
[387689557,1758810651860,-1217.18338762,0.00033834,21]
[387689558,1758810651870,-6253.47107202,0.00034,120]
[387689559,1758810651879,-233.66602051,0.00034,120]
[387689560,1758810651889,-417.15472785,0.00034,120]
[387689561,1758810651899,-6253.47107202,0.000343,120]
[387689562,1758810651908,-390.4368942,0.00034349,30]
[387689563,1758810651917,-225.2,0.00034383,23]
[387689564,1758810651927,-704.46,0.0003452,120]
[387689565,1758810651936,-163.0,0.000346,120]
[387689566,1758810651946,-308.0576652,0.00034647,30]
[387689567,1758810651955,-6253.47107202,0.000347,120]
[387689568,1758810651966,-160.0,0.0003488,4]
[387689569,1758810651975,-1217.18338762,0.00034906,23]
[387689570,1758810651985,-6253.47107202,0.00035,120]
[387689571,1758810651994,-225.2,0.00035068,24]
[387689572,1758810652005,-390.4368942,0.00035308,30]
[387689573,1758810652014,-390.4368942,0.00035308,30]
[387689574,1758810652025,-390.4368942,0.00035308,30]
[387689575,1758810652035,-704.46,0.00035342,120]
[387689576,1758810652045,-390.4368942,0.00035469,30]
[387689577,1758810652055,-390.4368942,0.00035469,30]
[387689578,1758810652066,-627.1480058,0.00035469,30]
[387689579,1758810652076,-978.0,0.00035647,2]
[387689580,1758810652087,-2160.0,0.00035647,2]
[387689581,1758810652098,-635.0,0.00035647,2]
[387689582,1758810652109,-410.0,0.00035647,2]
[387689583,1758810652119,-225.2,0.00035753,25]
[387689584,1758810652134,-1217.18338762,0.00035978,26]
[387689585,1758810652145,-519.73855678,0.00036,2]
[387689586,1758810652155,-417.15472785,0.00036,30]
[387689587,1758810652164,-704.46,0.00036164,120]
[387689588,1758810652173,-225.2,0.00036438,26]
[387689589,1758810652185,-151.0,0.00036755,30]
[387689590,1758810652195,-500.0,0.00036986,7]
[387689591,1758810652205,-704.46,0.00036986,120]
[387689592,1758810652215,-519.73855678,0.00037,120]
[387689593,1758810652225,-1217.18338762,0.0003705,28]
[387689594,1758810652235,-1796.36,0.000371,14]
[387689595,1758810652244,-225.2,0.00037123,27]
[387689596,1758810652254,-160.0,0.0003744,5]
[387689597,1758810652263,-350.0,0.00037568,46]
[387689598,1758810652272,-250.0,0.00037568,46]
[387689599,1758810652282,-500.0,0.00037568,46]
[387689600,1758810652293,-151.0,0.00037568,46]
[387689601,1758810652302,-187.78006525,0.00037568,46]
[387689602,1758810652313,-350.0,0.00037569,46]
[387689603,1758810652323,-250.0,0.00037569,46]
[387689604,1758810652332,-200.0,0.00037569,46]
[387689605,1758810652341,-500.0,0.00037569,46]
[387689606,1758810652352,-151.0,0.00037569,46]
[387689607,1758810652362,-181.08010149,0.00037569,46]
[387689608,1758810652372,-225.2,0.00037808,28]
[387689609,1758810652382,-704.46,0.00037808,120]
[387689610,1758810652391,-500.0,0.00037808,7]
[387689611,1758810652401,-20313.68382273,0.00038,7]
[387689612,1758810652412,-6945.79678127,0.00038,30]
[387689613,1758810652423,-1217.18338762,0.00038122,30]
[387689614,1758810652434,-1500.0,0.00038356,2]
[387689615,1758810652445,-151.0,0.00038378,30]
[387689616,1758810652455,-225.2,0.00038493,29]
[387689617,1758810652465,-500.0,0.0003863,7]
[387689618,1758810652475,-704.46,0.0003863,120]
[387689619,1758810652484,-978.0,0.00038647,2]
[387689620,1758810652495,-2160.0,0.00038647,2]
[387689621,1758810652504,-635.0,0.00038647,2]
[387689622,1758810652514,-410.0,0.00038647,2]
[387689623,1758810652525,-500.0,0.00038904,120]
[387689624,1758810652535,-500.0,0.00038904,120]
[387689625,1758810652545,-440.0,0.00038904,120]
[387689626,1758810652555,-300.0,0.0003899,120]
[387689627,1758810652564,-233.66602051,0.00039,30]
[387689628,1758810652574,-437.0225434,0.00039041,30]
[387689629,1758810652584,-200.0,0.0003914,50]
[387689630,1758810652594,-350.0,0.00039177,30]
[387689631,1758810652604,-250.0,0.00039177,30]
[387689632,1758810652614,-200.0,0.00039177,30]
[387689633,1758810652624,-151.0,0.00039177,30]
[387689634,1758810652634,-500.0,0.00039177,30]
[387689635,1758810652644,-174.61919141,0.00039177,30]
[387689636,1758810652653,-225.2,0.00039178,30]
[387689637,1758810652663,-350.0,0.00039193,32]
[387689638,1758810652673,-250.0,0.00039193,32]
[387689639,1758810652683,-200.0,0.00039193,32]
[387689640,1758810652693,-151.0,0.00039193,32]
[387689641,1758810652707,-500.0,0.00039193,32]
[387689642,1758810652717,-151.0,0.00039193,32]
[387689643,1758810652727,-168.3888056,0.00039193,32]
[387689644,1758810652738,-1217.18338762,0.00039194,32]
[387689645,1758810652748,-151.0,0.000393,17]
[387689646,1758810652758,-500.0,0.00039452,7]
[387689647,1758810652767,-704.46,0.00039452,120]
[387689648,1758810652778,-157.606122,0.000397,14]
[387689649,1758810652788,-18855.6845878,0.00039747,2]
[387689650,1758810652798,-225.2,0.00039863,31]
[387689651,1758810652807,-725.8936917,0.00039863,30]
[387689652,1758810652817,-586.2552204,0.00039863,30]
[387689653,1758810652827,-592.4848814,0.00039863,30]
[387689654,1758810652837,-586.2552204,0.00039863,30]
[387689655,1758810652847,-586.2552204,0.00039863,30]
[387689656,1758810652947,-586.2552204,0.00039863,30]
[387689657,1758810652958,-586.2552204,0.00039863,30]
[387689658,1758810652970,-500.0,0.00039973,5]
[387689659,1758810652979,-250.0,0.00039998,30]
[387689660,1758810652990,-350.0,0.00039998,30]
[387689661,1758810652999,-245.0,0.00039998,30]
[387689662,1758810653010,-200.0,0.00039998,30]
[387689663,1758810653020,-250.0,0.00039998,31]
[387689664,1758810653030,-350.0,0.00039998,31]
[387689665,1758810653040,-200.0,0.00039998,31]
[387689666,1758810653051,-151.0,0.00039998,30]
[387689667,1758810653061,-500.0,0.00039998,30]
[387689668,1758810653071,-151.0,0.00039998,31]
[387689669,1758810653080,-500.0,0.00039998,31]
[387689670,1758810653090,-156.587,0.00039998,30]
[387689671,1758810653100,-151.0,0.00039998,30]
[387689672,1758810653110,-162.380719,0.00039998,31]
[387689673,1758810653120,-151.0,0.00039998,31]
[387689674,1758810653129,-1890.07296081,0.00039998,30]
[387689675,1758810653139,-157.606122,0.00039999,30]